Cogmind - Beta 15 @@@ ROGUE MODE // 2025.08.01 @ 15:42:29 Player: IAMTRASHMAN Result: Smashed by cave-in Performance ------------- Evolutions (0) 0 Regions Visited (2) 400 Robots Destroyed (18) 90 Value Destroyed (653) 653 Prototype IDs (11) 220 Alien Tech Used (0) 0 Bonus (0) 0 TOTAL SCORE: 1363 Bonus ------- None Cogmind --------- Core Integrity 0/250 Matter 167/300 Energy 100/100 System Corruption 5% Temperature Cool (0) Movement Walking (130) Location -10/Subcaves Parts ------- > --- POWER (1) -------- (None) > --- PROPULSION (2) --- Cargo Legs > --- UTILITY (2) ------ Large Storage Unit > --- WEAPON (2) ------- Battle Rifle Subdweller Machine Gun > --- INVENTORY (15) --- Subdweller Power Source Subdweller Power Source Subdweller Monowheel Subdweller Monowheel Subdweller Optics Cobbler Unit Subdweller Laser Subdweller Beam Cannon Subdweller Beam Cannon Subdweller Shrapnel Launcher Enhanced Flamer Makeshift Sword Makeshift Spear Peak State ------------ > --- POWER ------------ Ion Engine > --- PROPULSION ------- Makeshift Leg Cargo Legs > --- UTILITY ---------- Large Storage Unit Makeshift Light Armor Plating Tower Shield > --- WEAPON ----------- Riot Gun Subdweller Laser Battle Rifle Battle Rifle > --- INVENTORY -------- Subdweller Power Source Subdweller Power Source Subdweller Monowheel Subdweller Monowheel Subdweller Optics Cobbler Unit Subdweller Beam Cannon Subdweller Beam Cannon Subdweller Machine Gun Grenade Launcher Subdweller Shrapnel Launcher Makeshift Sword Makeshift Spear [Rating: 58] Favorites ----------- Power Ion Engine Engine Ion Engine Propulsion Cargo Legs Treads Light Treads Leg Cargo Legs Wheel Wheel Utility Makeshift Light Armor Plating Storage Large Storage Unit Processor Targeting Computer Protection Makeshift Light Armor Plating Weapon Battle Rifle Energy Gun Subdweller Laser Energy Cannon Subdweller Beam Cannon Ballistic Gun Battle Rifle Launcher Subdweller Shrapnel Launcher Special Weapon Flamer Piercing Weapon Makeshift Spear Build | -11 -10 -10 ------- Run | Yrd Mat Sub Slots Evolved . | . . . Power . | . . . Propulsion . | . . . Utility . | . . . Weapon . | . . . Parts Attached 29 | 5 2 22 Power 2 | 1 . 1 Engine 2 | 1 . 1 Core . | . . . Reactor . | . . . Propulsion 6 | 2 . 4 Treads 2 | . . 2 Leg 2 | . . 2 Wheel 2 | 2 . . Hover . | . . . Flight . | . . . Utility 5 | . 2 3 Device . | . . . Storage 2 | . 1 1 Processor 1 | . 1 . Hackware . | . . . Protection 2 | . . 2 Artifact . | . . . Weapon 16 | 2 . 14 Energy Gun 5 | 1 . 4 Energy Cannon 1 | . . 1 Ballistic Gun 6 | 1 . 5 Ballistic Cannon . | . . . Launcher 2 | . . 2 Special Weapon 1 | . . 1 Impact Weapon . | . . . Slashing Weapon . | . . . Piercing Weapon 1 | . . 1 Special Melee Weapon . | . . . Unidentified Prototypes 1 | . . 1 Parts Lost 9 | . . 9 Power 2 | . . 2 Propulsion 1 | . . 1 Utility 3 | . . 3 Weapon 3 | . . 3 Highest Loss Streak 3 | . . 3 To Critical Strikes . | . . . Average Backups 11 | 2 6 11 Power 1 | . 1 1 Propulsion 1 | . 2 1 Utility 1 | . . 1 Weapon 5 | . 2 6 Tool/Special . | . . . Unused Backups 12 | . . 12 Power 2 | . . 2 Propulsion 2 | . . 2 Utility 4 | . . 4 Weapon 4 | . . 4 Tool/Special . | . . . Average Slot Usage (%) 71 | . 80 70 Engine 8 | . 14 8 Treads 6 | . . 7 Leg 6 | . . 7 Wheel 2 | . 28 . Storage 9 | . 6 9 Processor 2 | . 4 2 Protection 8 | . . 9 Energy Gun 10 | . 13 10 Ballistic Gun 13 | . 13 13 Peak Build Rating 58 | 5 7 58 Average Rating 32 | 3 5 35 On Entrance 4 | . 5 7 Naked Turns . | . . . Heaviest Build 82 | 6 11 82 Greatest Support 75 | 20 20 75 Greatest Overweight (x) 1 | . . 1 Average Overweight (x) . | . . . Largest Inventory Capacity 15 | 5 8 15 Average Capacity 12 | 5 6 13 Most Carried 15 | 5 8 15 Average Carried 11 | 1 6 12 Final Capacity 15 | 5 8 15 Final Carried 14 | 5 8 14 Class Distribution -------------------- 59% | Mutant 40% | Derelict-Tank Dominant Class ---------------- Mutant | -10/Materials Mutant | -10/Subcaves Resources | -11 -10 -10 ----------- Run | Yrd Mat Sub Matter Collected 852 | 223 50 579 Remotely . | . . . Salvage Created 870 | . 118 752 Parts 45 | . 8 37 Haulers Intercepted . | . . . Recyclers Shooed . | . . . Parts Field Recycled . | . . . Retrieved Matter . | . . . Parts Self-Destructed 8 | . . 8 Prevented 1 | . . 1 Kills | -11 -10 -10 ------- Run | Yrd Mat Sub Combat Hostiles Destroyed 18 | . 4 14 Guns 16 | . 4 12 Cannons 2 | . . 2 Classes Destroyed 6 | . 2 4 Swarmer 2 | . 2 . Grunt 2 | . 2 . Sentry 1 | . . 1 Artisan 1 | . . 1 Cobbler 1 | . . 1 Subdweller 13 | . . 13 Best Kill Streak 4 | . 4 2 Combat Bots Only 4 | . 4 2 Max Kills in Single Turn 1 | . 1 1 Gunslinging . | . . . Exploded . | . . . Melee . | . . . Uniques/NPCs Destroyed . | . . . Combat | -11 -10 -10 -------- Run | Yrd Mat Sub Hostile Shots Fired 106 | . 15 91 Missed 31 | . 4 27 Hits 75 | . 11 64 Projectile 75 | . 11 64 Critical Strikes 5 | . . 5 Damage Taken 2015 | . 97 1918 Core 276 | . 18 258 Absorbed by Shields . | . . . Core Remaining (%) 100 | 100 . . Volleys Fired 113 | . 13 100 Largest 4 | . 2 4 Hottest 180 | . 70 180 Shots Fired 238 | . 26 212 Gun 222 | . 26 196 Cannon 11 | . . 11 Launcher 3 | . . 3 Special 2 | . . 2 Kinetic 139 | . 13 126 Thermal 86 | . 13 73 Explosive . | . . . Electromagnetic 13 | . . 13 Robot Hit Streak 15 | . 7 15 Robot Miss Streak 3 | . 3 3 Penetration Max . | . . . Secondary Targets . | . . . Shots Hit Robots 144 | . 16 128 Core Hits 49 | . 9 40 Critical Kills . | . . . Critical Parts Destroyed . | . . . Critical Strikes 4 | . 1 3 Burn 2 | . 1 1 Destroy 2 | . . 2 Melee Attacks 9 | . . 9 Impact . | . . . Slashing . | . . . Piercing 9 | . . 9 Sneak Attacks . | . . . Combat Hostiles . | . . . Follow-up Attacks . | . . . Damage Inflicted 2028 | . 175 1853 Guns 1928 | . 175 1753 Cannons 52 | . . 52 Explosions 43 | . . 43 Melee . | . . . Ramming 5 | . . 5 Kinetic 1102 | . 74 1028 Thermal 741 | . 101 640 Explosive . | . . . Electromagnetic 180 | . . 180 Impact . | . . . Slashing . | . . . Piercing . | . . . Highest Corruption 5 | . . 5 Average Corruption 5 | . . 5 Corruption Purged . | . . . Corruption Blocked . | . . . Effects 2 | . . 2 Matter Fused 1 | . . 1 Weapon Failures 1 | . . 1 Overload Shots . | . . . Overflow Damage . | . . . Projectiles . | . . . Explosions . | . . . Melee . | . . . Knockbacks . | . . . Impact . | . . . Kinetic . | . . . Secondary . | . . . Self-Inflicted Damage 75 | . . 75 Shots 2 | . . 2 Rammed . | . . . Targets Rammed 2 | . . 2 Kicked 2 | . . 2 Crushed . | . . . Highest Temperature 284 | . 178 284 Average Temperature 62 | . 76 56 Received Heat Transfer 618 | . 18 600 Siege Activations . | . . . Martial Activations . | . . . Shielding Activations . | . . . Robots Disrupted . | . . . Combat Hostiles . | . . . Robots Corrupted . | . . . Combat Hostiles . | . . . Parts Fried . | . . . Impact Corruptions . | . . . Robots Melted . | . . . Combat Hostiles . | . . . Parts Melted 3 | . . 3 Heat Transferred 1759 | . 370 1389 Parts Sabotaged . | . . . Parts Stolen . | . . . Parts Stripped . | . . . Power Chain Reactions 1 | . . 1 Alert | -11 -10 -10 ------- Run | Yrd Mat Sub Maximum Alert Level . | . . . Low Security (%) 100 | 100 100 . Level 1 . | . . . Level 2 . | . . . Level 3 . | . . . Level 4 . | . . . Level 5 . | . . . High Security . | . . . Max Security . | . . . Peak Influence 80 | . 80 . Initial . | . . . Average 25 | . 32 . Influence Increases 140 | . 120 20 Destroy 0b10 Robot/C 100 | . 80 20 Destroy Leader 10 | . 10 . Select Force Hacks 30 | . 30 . Influence Decreases 140 | . 120 20 Time Decay 140 | . 120 20 Squads Dispatched 2 | . 2 . Investigation 2 | . 2 . Extermination . | . . . Reinforcement . | . . . Assault . | . . . Garrison . | . . . Intercept . | . . . Searches Triggered . | . . . Construction Impeded . | . . . Haulers Reinforced . | . . . Active Scanning Responses . | . . . Cargo Convoy Interrupts . | . . . Stealth | -11 -10 -10 --------- Run | Yrd Mat Sub Distress Signals . | . . . Communications Jammed . | . . . Distress Signals . | . . . Times Spotted 24 | . 7 17 Peak Tracking Total 5 | . 5 2 Tactical Retreats . | . . . Traps | -11 -10 -10 ------- Run | Yrd Mat Sub Traps Triggered 5 | . 4 1 Indirectly . | . . . Trap Hack Attempts . | . . . Triggered . | . . . Disarmed . | . . . Reprogrammed . | . . . Reused . | . . . Traps Extracted . | . . . Installed . | . . . Triggered . | . . . Machines | -11 -10 -10 ---------- Run | Yrd Mat Sub Machines Disabled 1 | . . 1 Max in Single Turn 1 | . . 1 Machines Repaired . | . . . Machines Dismantled . | . . . Machines Sabotaged . | . . . Overloaded Fab Kills . | . . . Hacking | -11 -10 -10 --------- Run | Yrd Mat Sub Machines Accessed 5 | . 3 2 Terminals 2 | . 2 . Fabricators . | . . . Repair Stations . | . . . Recycling Units 1 | . 1 . Scanalyzers . | . . . Garrison Access . | . . . Total Hacks 13 | . 7 6 Successful 9 | . 3 6 Failed 4 | . 4 . Catastrophic 2 | . 2 . Database Lockouts . | . . . Manual 2 | . 1 1 Terminals 5 | . 5 . Fabricators . | . . . Repair Stations . | . . . Recycling Units 2 | . 2 . Scanalyzers . | . . . Garrison Access . | . . . Terminal Hacks 7 | . 1 6 Record 5 | . . 5 Zone Layout 1 | . 1 . Proto ID Catalog 1 | . . 1 Fabricator Hacks . | . . . Repair Station Hacks . | . . . Recycling Unit Hacks 1 | . 1 . Report Inventory 1 | . 1 . Scanalyzer . | . . . Garrison Access Hacks . | . . . Unauthorized Hacks 1 | . 1 . Terminals . | . . . Fabricators . | . . . Repair Stations . | . . . Recycling Units 1 | . 1 . Tunnel 1 | . 1 . Scanalyzers . | . . . Garrison Access . | . . . Data Cores Recovered . | . . . Used . | . . . Hacking Detections 2 | . 2 . Full Trace Events 1 | . 1 . Feedback Events . | . . . Feedback Blocked . | . . . Robot Schematics Acquired . | . . . Robots Built . | . . . Authchips . | . . . Time . | . . . Total Robot Build Rating . | . . . Part Schematics Acquired . | . . . Parts Built . | . . . Authchips . | . . . Time . | . . . Total Part Build Rating . | . . . Parts Repaired . | . . . Time . | . . . Parts Recycled . | . . . Recycled Matter . | . . . Retrieved Matter . | . . . Retrieved Components . | . . . Parts Scanalyzed . | . . . Part Schematics Acquired . | . . . Parts Damaged . | . . . Bothacking | -11 -10 -10 ------------ Run | Yrd Mat Sub Used RIF Installer . | . . . Robots Hacked . | . . . Non-combat . | . . . Combat . | . . . Robot Hacks Applied . | . . . Relay Couplers Released . | . . . Fabnet Peak Effective % . | . . . Robots Rewired . | . . . Allies Hacked . | . . . Hacks Repelled . | . . . Allies | -11 -10 -10 -------- Run | Yrd Mat Sub Total Allies . | . . . Largest Group . | . . . Highest-Rated Group . | . . . Highest-Rated Ally . | . . . Total Orders . | . . . Ally Attacks . | . . . Total Damage . | . . . Kills . | . . . Allies Corrupted . | . . . Allies Melted . | . . . Intel | -11 -10 -10 ------- Run | Yrd Mat Sub Active Infowar (turns) . | . . . Robot Analysis Total . | . . . Derelict Logs Recovered 2 | . . 2 Drone Launches . | . . . Drone Recoveries . | . . . Exploration | -11 -10 -10 ------------- Run | Yrd Mat Sub Turns Passed 3137 | 65 268 2804 Spaces Moved 1776 | 67 268 1441 Core 4 | 4 . . Treads 411 | . . 411 Legs 1030 | . . 1030 Wheels 331 | 63 268 . Hover . | . . . Flight . | . . . Fastest Speed 50 | 50 80 130 Average Speed 150 | 78 80 167 Slowest Speed 205 | 80 80 205 Overloaded Moves . | . . . Propulsion Burnouts . | . . . Robots Hopped . | . . . Potential Cave-ins 2 | . . 2 Cave-ins Triggered 2 | . . 2 Exploration Rate (%) 38 | 4 38 72 Regions Visited 2 Branch Regions 1 Pre-discovered Areas 2 | . 1 1 Known Exits Taken . | . . . Unknown Exits Taken 2 | 1 1 . Scrap Searched 4 | . . 4 Spaces Dug 22 | . . 22 Terrain Destroyed 63 | . . 63 Melee 5 | . . 5 Projectile . | . . . AOE 58 | . . 58 Terrain Rammed . | . . . Walls Destroyed . | . . . Machines Disabled . | . . . Actions | -11 -10 -10 --------- Run | Yrd Mat Sub Total 2017 | 76 293 1648 Wait 27 | . . 27 Move 1774 | 66 267 1441 Hop . | . . . Pick Up 31 | 5 4 22 Fast Attach 21 | 5 8 8 Attach 8 | . 1 7 Detach 2 | . . 2 Swap 14 | . . 14 Drop 16 | . . 16 Fire 113 | . 13 100 Melee 9 | . . 9 Ram . | . . . Kick 2 | . . 2 Crush . | . . . Escape Stasis . | . . . Rewire . | . . . Trap . | . . . Miscellaneous . | . . . Route ------- -11/Scrapyard -10/Materials (discovered 2 exits: [*Mat] / *Sub) -10/Subcaves (discovered 2 exits: [*Mat] / [*Scr]) History --------- Turn | Location | Event 2 | -11/Scrapyard | Discovered new exit (range 16) 66 | -11/Scrapyard | Entered Materials 171 | -10/Materials | Discovered new exit (range 10) 268 | -10/Materials | Discovered new exit (range 10) 334 | -10/Materials | Entered Subcaves 335 | -10/Subcaves | Approached by a straggling Scientist 357 | -10/Subcaves | Build established: Mutant 374 | -10/Subcaves | Shifting Twisted Machinery released Sub. Power Source 531 | -10/Subcaves | Visited Clippyterm 536 | -10/Subcaves | Learned location of Extension (-4) 655 | -10/Subcaves | Scientist uncovered a shortcut to Scraptown 819 | -10/Subcaves | Lost 3 parts (1p1u1w) 920 | -10/Subcaves | Disturbed a concealed Subdweller 954 | -10/Subcaves | Core integrity fell below 50% 1094 | -10/Subcaves | Discovered new exit (range 10) 1098 | -10/Subcaves | Shifting Twisted Machinery released Sub. Optics 1102 | -10/Subcaves | Shifting Twisted Machinery released Riot Gun 1114 | -10/Subcaves | A Subdweller sparked back to life 1114 | -10/Subcaves | A Subdweller sparked back to life 1129 | -10/Subcaves | Found Prototype Leg 1129 | -10/Subcaves | Identified Cargo Legs 1130 | -10/Subcaves | Attached Cargo Legs, gained temporary slots: Utility x2 1318 | -10/Subcaves | Visited 4L-MR0's lab 1335 | -10/Subcaves | Found Tower Shield 1567 | -10/Subcaves | Learned Materials security intel 1612 | -10/Subcaves | Attached Tower Shield, gained temporary slots: Power, Propulsion x2, Utility x2, Weapon x2 1920 | -10/Subcaves | Build established: Derelict-Tank 2504 | -10/Subcaves | A swath of the cavern ceiling suddenly collapsed 2967 | -10/Subcaves | Ambushed by Subdweller buried in earth 3018 | -10/Subcaves | Shifting Twisted Machinery released Sub. Optics 3136 | -10/Subcaves | Crushed by falling debris 3136 | -10/Subcaves | Core integrity fell below 20% 3139 | -10/Subcaves | Crushed by falling debris 3139 | -10/Subcaves | Smashed by cave-in Last Messages --------------- 02901_ Acquired Battle Rifle. 02903_ Acquired 19 matter. 02968_ V6-DL1(R): "ARGHSUB!" 02986_ V6-DL1(R) destroyed. 02996_ Acquired 58 matter. Sub. Optics falls loose from the Twisted Machinery. 03110_ E7-W9B(R) affixes Scrap Shield Fragment to Scrap Shield. 03116_ The unstable cave ceiling collapses. 03120_ Critical hit (Destroy). 03124_ Kicked E7-W9B(R) out of the way. 03126_ Battle Rifle destroyed. 03130_ Mak. Light Armor Plating destroyed. 03136_ The unstable cave ceiling collapses. 03136_ Crushed by falling debris. 03136_ Ion Engine destroyed. 03136_ System corrupted by crushing effect (+5). 03136_ System corrupted: Battle Rifle jammed. 03138_ System corrupted: Matter fused (-5). 03139_ The unstable cave ceiling collapses. 03139_ Crushed by falling debris. Map ----- +----------------------------------------------------+ | ???????????# ?## =##?????????????????? | | ??????????? ??# ## #########??????????? | | ??????????? ??### "" " # ####???????? | | ??????????? ????## ##### """ #???????? | | ??????????? ?????## ##???##" ""### #???????? | | ??????????? ??????####?????##" ###"" ##???????? | | ??????????? ???????????????#"" #?# #????????? | | ??????????? ???????????????## #?## ###??????? | | ???????????# ????????????????####?# [] #??????? | | ???????????? ?????????????????????#= &! #??????? | | ???????????? ?????????????????????# ! & #??????? | | ???????????? [ ?????????????????????# = ! #??????? | | ??????????????????????#?????????????## != #??????? | | ???????????????????? ? #?????????????## ##??????? | | ????????????????????? #???????????## ##???????? | | ????????????????????? ??????????## ##????????? | | ?????????????????????? ?????????## #?????????? | | ???????????##????????? ??????####" " #?????????? | | ??????????# ##????????# ???####"##" "##?????????? | | ?????????? ?????????# ??## """ ##??????????? | | ?????????# #?????????# ?## ;;# ##??????????? | | ???????## ##????? ### ## ;##?????????? | | ??????## # ## #?# ; ; #?????????? | | ??????# #??# ; ; #?????????? | | ?????## #???#;; ;###?????????? | | ?????# # ## ###???????#@R &= ; ;#??????????? | | ?????# #??????????????##R;; = ;;##??????????? | | ?????## ##???????????####;;* ## ####???????????? | | ????## #??????????## # #########??????????????? | | ???## #??????????# #??????????????????????? | | ??## ##???###???## ##??????????????????????? | | ## ##??# ##???# #???????????????????????? | | ##?# ##?## ##??????????????????????? | | #?# ### #??????????????????????? | | ##### #### ##??????????????????????? | | ####?## ### ### ###???????????????????????? | | ##### ### ##?###?????????????????????????? | | ???# ## """#??????????????????????????????? | | ?????# ! """#"""#??????????????????????????????? | | ?????## """""#"""##??????????????????????????????? | | ??????# """"### #???????????????????????????????? | | ????? #? #???????????????????????????????? | | ???# ### #???????????????????????????????? | | ???# # ##""#???????????????????????????????? | | ???# #### """#???????????????????????????????? | | ???# ???## ""??????????????????????????????????? | | ??? ?????## "???????????????????????????????????? | | ?? ???????##"???????????????????????????????????? | | ? ??????????????????????????????????????????????? | | ?##??????????????????????????????????????????????? | +----------------------------------------------------+ Best States ------------- Heat Dissipation 25 Energy Generation 10 Energy Capacity 250 Matter Stores 300 Matter Capacity 300 Sight Range 16 Terrain Scan Density 10 Armor Coverage 2100 Evasion (%) 55 Targeting Accuracy 5 Recoil Reduction 2 Item Schematics ----------------- None Robot Schematics ------------------ None Fabricated ------------ Nothing Repaired ---------- Nothing Alien Tech Used ----------------- None Achievements -------------- None Challenges ------------ None Game ------ Seed CryofiberBeamRigger Manual? 0 Play Time 00:21:33 Cumulative 217.9 hours Start 2025.08.01 @ 14:24:51 End 2025.08.01 @ 15:42:29 Sessions 3 Manual Loads 0 Difficulty Rogue Special Mode None Game No. 226 Rogue 226 Adventurer 0 Explorer 0 Win Type - Total 3 Types 3/0/0/0/0/0/0/0/0/0 Lore% 73 Gallery% 70 Achievement% 66 Wizard Run 0 Options --------- Layout 0 ASCII 1 Keyboard 1 Movement Vi Keybinds 0 Fullscreen 1 Font 18/X11 Map View 76x50 Zoom Use 0% Tactical HUD 1 Map Filters NONE Filters NONE Steam X RUN: f1dfc2ee-be4a-403f-ba44-7990601573c9